fUSD/lending_fUSD_20240828
["ID","MTS","AMOUNT","RATE_DAILY","PERIOD"]
[336513259,1724886380821,-500.0,0.00039726,120]
[336513260,1724886380856,-657.96,0.00039726,120]
[336513261,1724886380889,-500.0,0.00039726,120]
[336513262,1724886380922,-599.97,0.00039726,120]
[336513263,1724886380957,-1659.69,0.00039726,120]
[336513264,1724886380993,-1100.2,0.00039726,120]
[336513265,1724886381026,-856.47,0.00039726,120]
[336513266,1724886381062,-500.0,0.00039726,120]
[336513267,1724886381095,-642.74,0.00039726,120]
[336513268,1724886381138,-538.57,0.00039726,120]
[336513269,1724886381175,-2510.82,0.00039726,120]
[336513270,1724886381212,-500.0,0.00039726,120]
[336513271,1724886381249,-596.3,0.00039726,120]
[336513272,1724886381294,-590.49,0.00039726,120]
[336513273,1724886381339,-1542.54,0.00039726,120]
[336513274,1724886381385,-500.0,0.00039726,120]
[336513275,1724886381431,-1387.25,0.00039726,120]
[336513276,1724886381472,-2280.95,0.00039726,120]
[336513277,1724886381509,-507.68695075,0.00039726,120]
[336513278,1724886381547,-500.0,0.00039726,120]
[336513279,1724886381584,-1973.94,0.00039726,120]
[336513280,1724886381623,-1458.38,0.00039726,120]
[336513281,1724886381659,-858.32,0.00039726,120]
[336513282,1724886381695,-2931.85,0.00039726,120]
[336513283,1724886381731,-500.0,0.00039726,120]
[336513284,1724886381767,-4021.68,0.00039726,120]
[336513285,1724886381805,-500.0,0.00039726,120]
[336513286,1724886381841,-500.0,0.00039726,120]
[336513287,1724886381880,-500.0,0.00039726,120]
[336513288,1724886381916,-500.0,0.00039726,120]
[336513289,1724886381953,-1873.73,0.00039726,120]
[336513290,1724886381989,-2848.34,0.00039726,120]
[336513291,1724886382023,-857.58,0.00039726,120]
[336513292,1724886382058,-1688.12,0.00039726,120]
[336513293,1724886382093,-2875.39,0.00039726,120]
[336513294,1724886382131,-638.29,0.00039726,120]
[336513295,1724886382167,-4377.14,0.00039726,120]
[336513296,1724886382204,-1902.16,0.00039726,120]
[336513297,1724886382440,-1445.03,0.00039726,120]
[336513298,1724886382477,-817.34,0.00039726,120]
[336513299,1724886382514,-751.75,0.00039726,120]
[336513300,1724886382550,-500.0,0.00039726,120]
[336513301,1724886382583,-975.14,0.00039726,120]
[336513302,1724886382618,-604.20349052,0.00039726,120]
[336513303,1724886382652,-3173.41,0.00039726,120]
[336513304,1724886382686,-622.86,0.00039726,120]
[336513305,1724886382719,-538.32,0.00039726,120]
[336513306,1724886382755,-1983.16,0.00039726,120]
[336513307,1724886382793,-2072.52,0.00039726,120]
[336513308,1724886382827,-900.43,0.00039726,120]
[336513309,1724886382862,-525.29241633,0.00039726,120]
[336513310,1724886382899,-500.0,0.00039726,120]
[336513311,1724886382935,-500.0,0.00039726,120]
[336513312,1724886382973,-524.95,0.00039726,120]
[336513313,1724886383010,-500.0,0.00039726,120]
[336513314,1724886383047,-1897.55,0.00039726,120]
[336513315,1724886383083,-667.26,0.00039726,120]
[336513316,1724886383120,-500.0,0.00039726,120]
[336513317,1724886383155,-618.31,0.00039726,120]
[336513318,1724886383193,-502.07,0.00039726,120]
[336513319,1724886383237,-702.1,0.00039726,120]
[336513320,1724886383281,-3827.11,0.00039726,120]
[336513321,1724886383317,-500.0,0.00039726,120]
[336513322,1724886383355,-500.0,0.00039726,120]
[336513323,1724886383393,-700.52,0.00039726,120]
[336513324,1724886383431,-1745.31,0.00039726,120]
[336513325,1724886383469,-500.0,0.00039726,120]
[336513326,1724886383504,-500.0,0.00039726,120]
[336513327,1724886383547,-1444.99,0.00039726,120]
[336513328,1724886383583,-991.34,0.00039726,120]
[336513329,1724886383623,-500.0,0.00039726,120]
[336513330,1724886383657,-2115.31,0.00039726,120]
[336513331,1724886383692,-500.0,0.00039726,120]
[336513332,1724886383727,-500.0,0.00039726,120]
[336513333,1724886383762,-500.0,0.00039726,120]
[336513334,1724886383794,-1558.35,0.00039726,120]
[336513335,1724886383829,-1177.48,0.00039726,120]
[336513336,1724886383863,-1075.03,0.00039726,120]
[336513337,1724886383903,-3151.5,0.00039726,120]
[336513338,1724886383945,-1348.64,0.00039726,120]
[336513339,1724886383979,-807.9,0.00039726,120]
[336513340,1724886384018,-4982.06,0.00039726,120]
[336513341,1724886384057,-688.3,0.00039726,120]
[336513342,1724886384093,-1172.39,0.00039726,120]
[336513343,1724886384134,-777.36,0.00039726,120]
[336513344,1724886384172,-500.0,0.00039726,120]
[336513345,1724886384211,-2416.27,0.00039726,120]
[336513346,1724886384249,-500.0,0.00039726,120]
[336513347,1724886384289,-515.92,0.00039726,120]
[336513348,1724886384330,-1966.88,0.00039726,120]
[336513349,1724886384368,-680.75,0.00039726,120]
[336513350,1724886384407,-1610.62,0.00039726,120]
[336513351,1724886384447,-500.0,0.00039726,120]
[336513352,1724886384484,-1518.07,0.00039726,120]
[336513353,1724886384524,-500.0,0.00039726,120]
[336513354,1724886384560,-500.0,0.00039726,120]
[336513355,1724886384598,-500.0,0.00039726,120]
[336513356,1724886384636,-500.0,0.00039726,120]
[336513357,1724886384674,-4920.23,0.00039726,120]
[336513358,1724886384712,-1636.28,0.00039726,120]
[336513359,1724886384749,-500.0,0.00039726,120]
[336513360,1724886384787,-584.44,0.00039726,120]
[336513361,1724886384824,-874.81,0.00039726,120]
[336513362,1724886384864,-1587.02,0.00039726,120]
[336513363,1724886384907,-1128.87,0.00039726,120]
[336513364,1724886384947,-702.15,0.00039726,120]
[336513365,1724886384987,-500.0,0.00039726,120]
[336513366,1724886385030,-500.0,0.00039726,120]
[336513367,1724886385070,-756.72,0.00039726,120]
[336513368,1724886385111,-500.0,0.00039726,120]
[336513369,1724886385150,-500.0,0.00039726,120]
[336513370,1724886385191,-2179.6,0.00039726,120]
[336513371,1724886385232,-406.88,0.00039726,120]
[336513372,1724886385273,-2028.44,0.00039726,120]
[336513373,1724886385316,-1664.07,0.00039726,120]
[336513374,1724886385362,-500.0,0.00039726,120]
[336513375,1724886385399,-1302.57,0.00039726,120]
[336513376,1724886385440,-500.0,0.00039726,120]
[336513377,1724886385476,-620.45,0.00039726,120]
[336513378,1724886385513,-1218.33,0.00039726,120]
[336513379,1724886385550,-2148.51,0.00039726,120]
[336513380,1724886385588,-1633.17,0.00039726,120]
[336513381,1724886385628,-2675.65,0.00039726,120]
[336513382,1724886385667,-500.0,0.00039726,120]
[336513383,1724886385708,-818.49,0.00039726,120]
[336513384,1724886385745,-500.0,0.00039726,120]
[336513385,1724886385787,-500.0,0.00039726,120]
[336513386,1724886385826,-1126.3,0.00039726,120]
[336513387,1724886385863,-1808.21,0.00039726,120]
[336513388,1724886385899,-1729.49,0.00039726,120]
[336513389,1724886385936,-896.18,0.00039726,120]
[336513390,1724886385976,-500.0,0.00039726,120]
[336513391,1724886386015,-500.0,0.00039726,120]
[336513392,1724886386053,-500.0,0.00039726,120]
[336513393,1724886386093,-750.39,0.00039726,120]
[336513394,1724886386132,-500.0,0.00039726,120]
[336513395,1724886386167,-578.02,0.00039726,120]
[336513396,1724886386203,-500.0,0.00039726,120]
[336513397,1724886386240,-991.0,0.00039726,120]
[336513398,1724886386275,-1130.55,0.00039726,120]
[336513399,1724886386309,-500.0,0.00039726,120]
[336513400,1724886386524,-1630.01,0.00039726,120]
[336513401,1724886386569,-500.0,0.00039726,120]
[336513402,1724886386605,-590.45,0.00039726,120]
[336513403,1724886386643,-500.0,0.00039726,120]
[336513404,1724886386680,-513.4,0.00039726,120]
[336513405,1724886386716,-1227.48,0.00039726,120]
[336513406,1724886386758,-500.0,0.00039726,120]
[336513407,1724886386795,-500.0,0.00039726,120]
[336513408,1724886386834,-500.0,0.00039726,120]
[336513409,1724886386871,-970.41,0.00039726,120]
[336513410,1724886386909,-2066.23,0.00039726,120]
[336513411,1724886386947,-407.85381762,0.00039726,120]
[336513412,1724886386984,-1902.05,0.00039726,120]
[336513413,1724886387023,-775.02,0.00039726,120]
[336513414,1724886387060,-520.97,0.00039726,120]
[336513415,1724886387098,-500.0,0.00039726,120]
[336513416,1724886387138,-656.55,0.00039726,120]
[336513417,1724886387177,-2003.7,0.00039726,120]
[336513418,1724886387218,-500.0,0.00039726,120]
[336513419,1724886387256,-882.93,0.00039726,120]
[336513420,1724886387295,-1781.49,0.00039726,120]
[336513421,1724886387333,-500.0,0.00039726,120]
[336513422,1724886387370,-2200.21,0.00039726,120]
[336513423,1724886387410,-1795.66,0.00039726,120]
[336513424,1724886387447,-856.07,0.00039726,120]
[336513425,1724886387485,-678.81,0.00039726,120]
[336513426,1724886387523,-500.0,0.00039726,120]
[336513427,1724886387560,-2021.33,0.00039726,120]
[336513428,1724886387599,-3561.56,0.00039726,120]
[336513429,1724886387637,-500.0,0.00039726,120]
[336513430,1724886387675,-188.02170209,0.00039726,120]
[336513431,1724886387711,-500.0,0.00039726,120]
[336513432,1724886387750,-523.98,0.00039726,120]
[336513433,1724886387784,-633.3,0.00039726,120]
[336513434,1724886387819,-1724.83,0.00039726,120]
[336513435,1724886387855,-2406.05,0.00039726,120]
[336513436,1724886387892,-2580.18,0.00039726,120]
[336513437,1724886387928,-1926.97,0.00039726,120]
[336513438,1724886387963,-1103.03,0.00039726,120]
[336513439,1724886388000,-500.0,0.00039726,120]
[336513440,1724886388038,-502.99073624,0.00039726,120]
[336513441,1724886388074,-500.0,0.00039726,120]
[336513442,1724886388116,-2590.19,0.00039726,120]
[336513443,1724886388153,-637.96,0.00039726,120]
[336513444,1724886388191,-592.98,0.00039726,120]
[336513445,1724886388233,-1452.52,0.00039726,120]
[336513446,1724886388271,-1060.29,0.00039726,120]
[336513447,1724886388309,-2206.8,0.00039726,120]
[336513448,1724886388345,-539.08,0.00039726,120]
[336513449,1724886388389,-1387.41,0.00039726,120]
[336513450,1724886388426,-554.78,0.00039726,120]
[336513451,1724886388465,-1991.52,0.00039726,120]
[336513452,1724886388501,-1270.9,0.00039726,120]
[336513453,1724886388536,-1867.99,0.00039726,120]
[336513454,1724886388570,-520.58,0.00039726,120]
[336513455,1724886388607,-500.0,0.00039726,120]
[336513456,1724886388642,-500.0,0.00039726,120]
[336513457,1724886388677,-662.84,0.00039726,120]
[336513458,1724886388709,-500.0,0.00039726,120]
[336513459,1724886388742,-500.0,0.00039726,120]
[336513460,1724886388777,-500.0,0.00039726,120]
[336513461,1724886388812,-1383.46,0.00039726,120]
[336513462,1724886388847,-2311.37,0.00039726,120]
[336513463,1724886388882,-2049.02,0.00039726,120]
[336513464,1724886388917,-500.0,0.00039726,120]
[336513465,1724886388952,-500.0,0.00039726,120]
[336513466,1724886388988,-680.33,0.00039726,120]
[336513467,1724886389024,-500.0,0.00039726,120]
[336513468,1724886389061,-1056.79,0.00039726,120]
[336513469,1724886389102,-891.13,0.00039726,120]
[336513470,1724886389142,-500.0,0.00039726,120]
[336513471,1724886389180,-500.0,0.00039726,120]
[336513472,1724886389221,-500.0,0.00039726,120]
[336513473,1724886389261,-717.5,0.00039726,120]
[336513474,1724886389302,-500.0,0.00039726,120]
[336513475,1724886389341,-500.0,0.00039726,120]
[336513476,1724886389388,-500.0,0.00039726,120]
[336513477,1724886389432,-1181.13,0.00039726,120]
[336513478,1724886389477,-1579.19,0.00039726,120]
[336513479,1724886389523,-500.0,0.00039726,120]
[336513480,1724886389562,-920.35,0.00039726,120]
[336513481,1724886389600,-1840.27,0.00039726,120]
[336513482,1724886389638,-500.0,0.00039726,120]
[336513483,1724886389675,-500.0,0.00039726,120]
[336513484,1724886389714,-654.82,0.00039726,120]
[336513485,1724886389751,-912.37,0.00039726,120]
[336513486,1724886389786,-1104.37,0.00039726,120]
[336513487,1724886389824,-500.0,0.00039726,120]
[336513488,1724886389860,-500.0,0.00039726,120]
[336513489,1724886389897,-631.76,0.00039726,120]
[336513490,1724886389940,-611.75,0.00039726,120]
[336513491,1724886389978,-500.0,0.00039726,120]
[336513492,1724886390013,-500.0,0.00039726,120]
[336513493,1724886390048,-500.0,0.00039726,120]
[336513494,1724886390082,-500.0,0.00039726,120]
[336513495,1724886390118,-500.0,0.00039726,120]
[336513496,1724886390153,-1569.87,0.00039726,120]
[336513497,1724886390190,-500.0,0.00039726,120]
[336513498,1724886390226,-1273.26,0.00039726,120]
[336513499,1724886390261,-500.0,0.00039726,120]
[336513500,1724886390305,-654.11,0.00039726,120]
[336513501,1724886390347,-500.0,0.00039726,120]
[336513502,1724886390386,-2638.27,0.00039726,120]
[336513503,1724886390422,-500.0,0.00039726,120]
[336513504,1724886390659,-2108.19,0.00039726,120]
[336513505,1724886390699,-500.0,0.00039726,120]
[336513506,1724886390739,-500.0,0.00039726,120]
[336513507,1724886390776,-452.46,0.00039726,120]
[336513508,1724886390813,-2142.25,0.00039726,120]
[336513509,1724886390847,-500.0,0.00039726,120]
[336513510,1724886390887,-2170.08,0.00039726,120]
[336513511,1724886390924,-542.54,0.00039726,120]
[336513512,1724886390960,-500.0,0.00039726,120]
[336513513,1724886390994,-500.0,0.00039726,120]
[336513514,1724886391028,-500.0,0.00039726,120]
[336513515,1724886391064,-739.6,0.00039726,120]
[336513516,1724886391101,-500.0,0.00039726,120]
[336513517,1724886391139,-500.0,0.00039726,120]
[336513518,1724886391173,-500.0,0.00039726,120]
[336513519,1724886391209,-500.0,0.00039726,120]
[336513520,1724886391244,-1209.44,0.00039726,120]
[336513521,1724886391278,-500.0,0.00039726,120]
[336513522,1724886391313,-500.0,0.00039726,120]
[336513523,1724886391348,-2783.34,0.00039726,120]
[336513524,1724886391388,-500.0,0.00039726,120]
[336513525,1724886391422,-500.0,0.00039726,120]
[336513526,1724886391457,-1174.49,0.00039726,120]
[336513527,1724886391492,-190.38383179,0.00039726,120]
[336513528,1724886391527,-500.0,0.00039726,120]
[336513529,1724886391562,-577.26,0.00039726,120]
[336513530,1724886391599,-1360.62,0.00039726,120]
[336513531,1724886391636,-614.02,0.00039726,120]
[336513532,1724886391673,-500.0,0.00039726,120]
[336513533,1724886391712,-500.0,0.00039726,120]
[336513534,1724886391753,-789.5,0.00039726,120]
[336513535,1724886391791,-656.15,0.00039726,120]
[336513536,1724886391827,-500.0,0.00039726,120]
[336513537,1724886391867,-599.62,0.00039726,120]
[336513538,1724886391906,-500.0,0.00039726,120]
[336513539,1724886391945,-500.0,0.00039726,120]
[336513540,1724886391988,-500.0,0.00039726,120]
[336513541,1724886392032,-640.33,0.00039726,120]
[336513542,1724886392070,-500.0,0.00039726,120]
[336513543,1724886392107,-2026.94,0.00039726,120]
[336513544,1724886392147,-1007.8,0.00039726,120]
[336513545,1724886392184,-3251.65,0.00039726,120]
[336513546,1724886392224,-979.48,0.00039726,120]
[336513547,1724886392261,-988.01,0.00039726,120]
[336513548,1724886392301,-703.62,0.00039726,120]
[336513549,1724886392341,-500.0,0.00039726,120]
[336513550,1724886392381,-551.69,0.00039726,120]
[336513551,1724886392421,-561.5,0.00039726,120]
[336513552,1724886392460,-500.0,0.00039726,120]
[336513553,1724886392498,-701.62,0.00039726,120]
[336513554,1724886392535,-1022.1,0.00039726,120]
[336513555,1724886392572,-1634.2,0.00039726,120]
[336513556,1724886392608,-896.96,0.00039726,120]
[336513557,1724886392648,-500.0,0.00039726,120]
[336513558,1724886392686,-500.0,0.00039726,120]
[336513559,1724886392722,-500.0,0.00039726,120]
[336513560,1724886392756,-500.0,0.00039726,120]
[336513561,1724886392791,-500.0,0.00039726,120]
[336513562,1724886392824,-1182.11,0.00039726,120]
[336513563,1724886392859,-500.0,0.00039726,120]
[336513564,1724886392899,-1294.95,0.00039726,120]
[336513565,1724886392935,-500.0,0.00039726,120]
[336513566,1724886392972,-500.0,0.00039726,120]
[336513567,1724886393009,-500.0,0.00039726,120]
[336513568,1724886393047,-500.0,0.00039726,120]
[336513569,1724886393087,-500.0,0.00039726,120]
[336513570,1724886393127,-500.0,0.00039726,120]
[336513571,1724886393167,-500.0,0.00039726,120]
[336513572,1724886393205,-500.0,0.00039726,120]
[336513573,1724886393245,-843.11,0.00039726,120]
[336513574,1724886393287,-500.0,0.00039726,120]
[336513575,1724886393329,-500.0,0.00039726,120]
[336513576,1724886393370,-579.28,0.00039726,120]
[336513577,1724886393410,-500.0,0.00039726,120]
[336513578,1724886393448,-500.0,0.00039726,120]
[336513579,1724886393488,-725.36,0.00039726,120]
[336513580,1724886393527,-500.0,0.00039726,120]
[336513581,1724886393568,-510.45,0.00039726,120]
[336513582,1724886393606,-493.1,0.00039726,120]
[336513583,1724886393648,-500.0,0.00039726,120]
[336513584,1724886393684,-576.92,0.00039726,120]
[336513585,1724886393722,-500.0,0.00039726,120]
[336513586,1724886393762,-500.0,0.00039726,120]
[336513587,1724886393801,-500.0,0.00039726,120]
[336513588,1724886393839,-500.0,0.00039726,120]
[336513589,1724886393877,-948.95,0.00039726,120]
[336513590,1724886393917,-500.0,0.00039726,120]
[336513591,1724886393953,-510.89328864,0.00039726,120]
[336513592,1724886393989,-632.09,0.00039726,120]
[336513593,1724886394026,-500.0,0.00039726,120]
[336513594,1724886394062,-500.0,0.00039726,120]
[336513595,1724886394099,-500.0,0.00039726,120]
[336513596,1724886394136,-500.0,0.00039726,120]
[336513597,1724886394173,-500.0,0.00039726,120]
[336513598,1724886394212,-1145.31,0.00039726,120]
[336513599,1724886394250,-500.0,0.00039726,120]
[336513600,1724886394292,-500.0,0.00039726,120]
[336513601,1724886394332,-500.0,0.00039726,120]
[336513602,1724886394374,-772.86,0.00039726,120]
[336513603,1724886394414,-535.61,0.00039726,120]
[336513604,1724886394452,-500.0,0.00039726,120]
[336513605,1724886394490,-500.0,0.00039726,120]
[336513606,1724886394534,-2098.61,0.00039726,120]
[336513607,1724886394572,-500.0,0.00039726,120]
[336513608,1724886394838,-1470.18,0.00039726,120]
[336513609,1724886394878,-509.22,0.00039726,120]
[336513610,1724886394915,-500.0,0.00039726,120]
[336513611,1724886394954,-500.0,0.00039726,120]
[336513612,1724886394993,-500.0,0.00039726,120]
[336513613,1724886395031,-500.0,0.00039726,120]
[336513614,1724886395069,-531.97,0.00039726,120]
[336513615,1724886395106,-380.93,0.00039726,120]
[336513616,1724886395144,-1877.64,0.00039726,120]
[336513617,1724886395181,-931.98,0.00039726,120]
[336513618,1724886395220,-1789.35,0.00039726,120]
[336513619,1724886395255,-500.0,0.00039726,120]
[336513620,1724886395291,-631.54,0.00039726,120]
[336513621,1724886395327,-2347.84,0.00039726,120]
[336513622,1724886395365,-500.0,0.00039726,120]
[336513623,1724886395404,-500.0,0.00039726,120]
[336513624,1724886395440,-500.0,0.00039726,120]
[336513625,1724886395476,-500.0,0.00039726,120]
[336513626,1724886395510,-982.26,0.00039726,120]
[336513627,1724886395548,-564.22,0.00039726,120]
[336513628,1724886395584,-469087.99215968,0.0003978,30]
[336513629,1724886395622,-822975.28518394,0.0003978,30]
[336513630,1724886395659,-800.0,0.00039808,120]
[336513631,1724886395693,-151.0,0.00039863,120]
[336513632,1724886395731,-2613.81431021,0.00039898,62]
[336513633,1724886395768,-203.29813374,0.00039898,120]
[336513634,1724886395804,-573.93261206,0.00039898,90]
[336513635,1724886395840,-781.07820372,0.00039898,90]
[336513636,1724886395877,-250.0,0.00039999,30]
[336513637,1724886395912,-1000.0,0.00039999,31]
[336513638,1724886395956,-50000.0,0.0004,30]
[336513639,1724886395999,-50000.0,0.0004,40]
[336513640,1724886396040,-1483.90183406,0.0004,30]
[336513641,1724886396076,-227.57828387,0.0004,30]
[336513642,1724886396112,-308.28,0.0004,30]
[336513643,1724886396148,-5000.0,0.0004,30]
[336513644,1724886396190,-477.12749073,0.0004,30]
[336513645,1724886396231,-2937.04232831,0.0004,30]
[336513646,1724886396275,-280.44463518,0.0004,30]
[336513647,1724886396318,-224.26906247,0.0004,30]
[336513648,1724886396359,-467.42288073,0.0004,30]
[336513649,1724886396397,-66963.66843006,0.0004,30]
[336513650,1724886396436,-402.4411959,0.0004,30]
[336513651,1724886396472,-445.28375452,0.0004,30]
[336513652,1724886396510,-120000.0,0.0004,30]
[336513653,1724886396545,-60232.6837413,0.0004,30]
[336513654,1724886396580,-10021.48936613,0.0004,30]
[336513655,1724886396617,-760142.64845112,0.0004,120]
[336513656,1724886396654,-200.0,0.0004,120]
[336513657,1724886396692,-267.39812644,0.0004,60]
[336513658,1724886396726,-50000.0,0.0004,30]
[336513659,1724886396762,-4000.0,0.0004,60]
[336513660,1724886396797,-500.0,0.0004,120]
[336513661,1724886396831,-500.0,0.0004,120]
[336513662,1724886396868,-560.05,0.0004,120]
[336513663,1724886396908,-1091.94,0.0004,120]
[336513664,1724886396943,-902.42,0.0004,120]
[336513665,1724886396977,-500.0,0.0004,120]
[336513666,1724886397013,-824.79,0.0004,120]
[336513667,1724886397049,-346.63,0.0004,120]
[336513668,1724886397086,-610.54,0.0004,120]
[336513669,1724886397125,-715.66,0.0004,120]
[336513670,1724886397161,-654.17,0.0004,120]
[336513671,1724886397200,-690.26,0.0004,120]
[336513672,1724886397239,-500.0,0.0004,120]
[336513673,1724886397280,-557.91,0.0004,120]
[336513674,1724886397319,-500.0,0.0004,120]
[336513675,1724886397358,-1770.22,0.0004,120]
[336513676,1724886397400,-725.33,0.0004,120]
[336513677,1724886397437,-1339.63,0.0004,120]
[336513678,1724886397475,-500.0,0.0004,120]
[336513679,1724886397511,-575.45,0.0004,120]
[336513680,1724886397549,-864.87,0.0004,120]
[336513681,1724886397584,-734.35,0.0004,120]
[336513682,1724886397619,-1201.5,0.0004,120]
[336513683,1724886397658,-1369.79,0.0004,120]
[336513684,1724886397692,-500.0,0.0004,120]
[336513685,1724886397728,-500.0,0.0004,120]
[336513686,1724886397762,-500.0,0.0004,120]
[336513687,1724886397797,-1370.96,0.0004,120]
[336513688,1724886397831,-500.0,0.0004,120]
[336513689,1724886397869,-1208.19,0.0004,120]
[336513690,1724886397912,-500.0,0.0004,120]
[336513691,1724886397949,-500.0,0.0004,120]
[336513692,1724886397982,-916.66,0.0004,120]
[336513693,1724886398017,-500.0,0.0004,120]
[336513694,1724886398052,-500.0,0.0004,120]
[336513695,1724886398087,-1754.5,0.0004,120]
[336513696,1724886398126,-500.0,0.0004,120]
[336513697,1724886398163,-500.0,0.0004,120]
[336513698,1724886398202,-732.18,0.0004,120]
[336513699,1724886398237,-500.0,0.0004,120]
[336513700,1724886398275,-500.0,0.0004,120]
[336513701,1724886398311,-1459.18,0.0004,120]
[336513702,1724886398347,-926.61,0.0004,120]
[336513703,1724886398386,-583.51,0.0004,120]
[336513704,1724886398421,-703.97,0.0004,120]
[336513705,1724886398457,-652.83,0.0004,120]
[336513706,1724886398490,-727.0,0.0004,120]
[336513707,1724886398525,-500.0,0.0004,120]
[336513708,1724886398559,-500.0,0.0004,120]
[336513709,1724886398593,-500.0,0.0004,120]
[336513710,1724886398628,-1064.54,0.0004,120]
[336513711,1724886398663,-500.0,0.0004,120]
[336513712,1724886398894,-500.0,0.0004,120]
[336513713,1724886398930,-500.0,0.0004,120]
[336513714,1724886398966,-500.0,0.0004,120]
[336513715,1724886399000,-578.43,0.0004,120]
[336513716,1724886399034,-1779.79,0.0004,120]
[336513717,1724886399067,-500.0,0.0004,120]
[336513718,1724886399106,-500.0,0.0004,120]
[336513719,1724886399146,-1416.66,0.0004,120]
[336513720,1724886399183,-3210.07,0.0004,120]
[336513721,1724886399218,-500.0,0.0004,120]
[336513722,1724886399253,-1426.45,0.0004,120]
[336513723,1724886399294,-683.48,0.0004,120]
[336513724,1724886399332,-953.05,0.0004,120]
[336513725,1724886399370,-1953.57,0.0004,120]
[336513726,1724886399408,-500.0,0.0004,120]
[336513727,1724886399446,-500.0,0.0004,120]
[336513728,1724886399487,-521.17,0.0004,120]
[336513729,1724886399527,-500.0,0.0004,120]
[336513730,1724886399563,-500.0,0.0004,120]
[336513731,1724886399599,-518.56682667,0.0004,120]
[336513732,1724886399636,-2061.37,0.0004,120]
[336513733,1724886399682,-500.0,0.0004,120]
[336513734,1724886399727,-1334.57,0.0004,120]
[336513735,1724886399764,-746.59,0.0004,120]
[336513736,1724886399799,-663.07,0.0004,120]
[336513737,1724886399833,-500.0,0.0004,120]
[336513738,1724886399869,-500.0,0.0004,120]
[336513739,1724886399911,-1030.68,0.0004,120]
[336513740,1724886399949,-500.0,0.0004,120]
[336513741,1724886399987,-910.03,0.0004,120]
[336513742,1724886400022,-500.0,0.0004,120]
[336513743,1724886400058,-3077.64,0.0004,120]
[336513744,1724886400095,-602.48,0.0004,120]
[336513745,1724886400133,-2165.38,0.0004,120]
[336513746,1724886400168,-585.27,0.0004,120]
[336513747,1724886400203,-500.0,0.0004,120]
[336513748,1724886400240,-500.0,0.0004,120]
[336513749,1724886400284,-2823.61,0.0004,120]
[336513750,1724886400329,-500.0,0.0004,120]
[336513751,1724886400368,-500.0,0.0004,120]
[336513752,1724886400405,-500.0,0.0004,120]
[336513753,1724886400442,-548.35,0.0004,120]
[336513754,1724886400478,-529.15,0.0004,120]
[336513755,1724886400512,-500.0,0.0004,120]
[336513756,1724886400549,-548.13,0.0004,120]
[336513757,1724886400586,-500.0,0.0004,120]
[336513758,1724886400622,-500.0,0.0004,120]